{"text_format":"1","workbook":"xlsx","n_sheets":2,"sheets":["Weight Loss Tracker","calculations"],"not_rendered":{"charts":1,"images":0,"macros":0,"external_links":0,"defined_names":10,"comments":0,"pivot_tables":0},"unopened":[],"bounds":{"document_bytes":16777216,"sheet_cells":100000,"rows_first":2000,"rows_last":500,"rows_between":2000,"halvings":0,"cell_chars":16384,"cell_head_chars":4096},"cells_cut":0,"cells_raw":0,"read":"whole","date_system":"1900"}

{"sheet":"Weight Loss Tracker","index":0,"n_rows":19,"n_cols":9,"rows_kept":19,"cut":false,"hidden":false,"merged":[[4,1,5,9],[0,8,0,9],[0,3,0,7],[1,3,2,9]]}
[null,"GOAL WEIGHT","CHART VIEW","Name",null,null,null,null,"WEIGHT LOSS"]
[null,null,null,"TRACKER"]
[null,172,"WEEKLY"]
[null,"SHOW GOAL WEIGHT","Yes"]
[null,"Weight Tracker Chart that tracks current weight is in this cell. Select \"Yes\" in cell C4 to show Goal Weight line over area chart."]
[]
[null,"DATE","WEIGHT"]
[null,{"$f":"TODAY()-77","v":"2017-06-02"},176]
[null,{"$f":"TODAY()-70","v":"2017-06-09"},176]
[null,{"$f":"TODAY()-63","v":"2017-06-16"},177.6]
[null,{"$f":"TODAY()-56","v":"2017-06-23"},176.5]
[null,{"$f":"TODAY()-49","v":"2017-06-30"},176.1]
[null,{"$f":"TODAY()-42","v":"2017-07-07"},174]
[null,{"$f":"TODAY()-35","v":"2017-07-14"},173.5]
[null,{"$f":"TODAY()-28","v":"2017-07-21"},173]
[null,{"$f":"TODAY()-21","v":"2017-07-28"},172]
[null,{"$f":"TODAY()-14","v":"2017-08-04"},172]
[null,{"$f":"TODAY()-7","v":"2017-08-11"},173]
[null,{"$f":"TODAY()","v":"2017-08-18"},172]

{"sheet":"calculations","index":1,"n_rows":107,"n_cols":17,"rows_kept":107,"cut":false,"hidden":true,"merged":[]}
["*** Sheet to remain hidden ***"]
[]
[{"$f":"COUNTIF(A5:A107,FALSE)","v":12},"Periods","Values",null,null,null,{"$f":"COUNTIF(H5:H28,\">\"&0)","v":3},"Periods",null,"Values"]
[null,"Week",null,null,{"$f":"IFERROR(IF(ShowGoalWeight=\"Yes\", TRUE, FALSE),FALSE)","v":true},null,null,"Month","EOM"]
[{"$f":"FALSE","v":false},{"$f":"IFERROR(IF(LEN('Weight Loss Tracker'!$B8)=0,TODAY(),'Weight Loss Tracker'!$B8),TODAY())","v":"2017-06-02"},{"$f":"IFERROR(IF(LEN('Weight Loss Tracker'!$C8)=0,GoalWeight,'Weight Loss Tracker'!$C8),0)","v":176},{"$f":"IFERROR(IF(MIN(ChartPeriods)=0,TODAY(),MIN(ChartPeriods)),TODAY())","v":"2017-06-02"},{"$f":"IFERROR(IF($A$5,0,IF($E$4,GoalWeight,NA())),0)","v":172},null,null,{"$f":"IFERROR(IF($A$5,TODAY(),DATE(YEAR($B5),MONTH($B5),1)),\"\")","v":"2017-06-01"},{"$f":"IFERROR(IF($A$5,TODAY(),EOMONTH($H5,0)),\"\")","v":"2017-06-30"},{"$f":"IFERROR(IF($A$5,0,AVERAGEIFS(Weight[WEIGHT],Weight[DATE],\">=\"&$H5,Weight[DATE],\"<=\"&$I5)),NA())","v":176.44}]
[{"$f":"IF((LEN('Weight Loss Tracker'!$C9)=0),TRUE)","v":false},{"$f":"IFERROR(IF(A6,0,IF(LEN('Weight Loss Tracker'!$B9)=0,0,'Weight Loss Tracker'!$B9)),\"\")","v":"2017-06-09"},{"$f":"IFERROR(IF(A6,0,IF(LEN('Weight Loss Tracker'!$C9)=0,0,'Weight Loss Tracker'!$C9)),\"\")","v":176},{"$f":"IFERROR(IF(MAX(ChartPeriods)=0,TODAY(),MAX(ChartPeriods)),TODAY())","v":"2017-08-18"},{"$f":"IFERROR(IF($A$5,0,IF($E$4,GoalWeight,NA())),0)","v":172},null,null,{"$f":"IF($I5+1>MAX($B:$B),NA(),$I5+1)","v":"2017-07-01"},{"$f":"EOMONTH($H6,0)","v":"2017-07-31"},{"$f":"IFERROR(AVERAGEIFS(Weight[WEIGHT],Weight[DATE],\">=\"&$H6,Weight[DATE],\"<=\"&$I6),NA())","v":173.125}]
[{"$f":"IF((LEN('Weight Loss Tracker'!$C10)=0),TRUE)","v":false},{"$f":"IFERROR(IF(A7,0,IF(LEN('Weight Loss Tracker'!$B10)=0,0,'Weight Loss Tracker'!$B10)),\"\")","v":"2017-06-16"},{"$f":"IFERROR(IF(A7,0,IF(LEN('Weight Loss Tracker'!$C10)=0,0,'Weight Loss Tracker'!$C10)),\"\")","v":177.6},null,null,null,null,"2017-08-01","2017-08-31",{"$f":"IFERROR(AVERAGEIFS(Weight[WEIGHT],Weight[DATE],\">=\"&$H7,Weight[DATE],\"<=\"&$I7),NA())","v":172.33333333333334}]
[{"$f":"IF((LEN('Weight Loss Tracker'!$C11)=0),TRUE)","v":false},{"$f":"IFERROR(IF(A8,0,IF(LEN('Weight Loss Tracker'!$B11)=0,0,'Weight Loss Tracker'!$B11)),\"\")","v":"2017-06-23"},{"$f":"IFERROR(IF(A8,0,IF(LEN('Weight Loss Tracker'!$C11)=0,0,'Weight Loss Tracker'!$C11)),\"\")","v":176.5},null,null,null,null,{"$error":"#N/A"},{"$error":"#N/A"},{"$f":"IFERROR(AVERAGEIFS(Weight[WEIGHT],Weight[DATE],\">=\"&$H8,Weight[DATE],\"<=\"&$I8),NA())","v":{"$error":"#N/A"}}]
[{"$f":"IF((LEN('Weight Loss Tracker'!$C12)=0),TRUE)","v":false},{"$f":"IFERROR(IF(A9,0,IF(LEN('Weight Loss Tracker'!$B12)=0,0,'Weight Loss Tracker'!$B12)),\"\")","v":"2017-06-30"},{"$f":"IFERROR(IF(A9,0,IF(LEN('Weight Loss Tracker'!$C12)=0,0,'Weight Loss Tracker'!$C12)),\"\")","v":176.1},null,null,null,null,{"$error":"#N/A"},{"$error":"#N/A"},{"$f":"IFERROR(AVERAGEIFS(Weight[WEIGHT],Weight[DATE],\">=\"&$H9,Weight[DATE],\"<=\"&$I9),NA())","v":{"$error":"#N/A"}}]
[{"$f":"IF((LEN('Weight Loss Tracker'!$C13)=0),TRUE)","v":false},{"$f":"IFERROR(IF(A10,0,IF(LEN('Weight Loss Tracker'!$B13)=0,0,'Weight Loss Tracker'!$B13)),\"\")","v":"2017-07-07"},{"$f":"IFERROR(IF(A10,0,IF(LEN('Weight Loss Tracker'!$C13)=0,0,'Weight Loss Tracker'!$C13)),\"\")","v":174},null,null,null,null,{"$error":"#N/A"},{"$error":"#N/A"},{"$f":"IFERROR(AVERAGEIFS(Weight[WEIGHT],Weight[DATE],\">=\"&$H10,Weight[DATE],\"<=\"&$I10),NA())","v":{"$error":"#N/A"}}]
[{"$f":"IF((LEN('Weight Loss Tracker'!$C14)=0),TRUE)","v":false},{"$f":"IFERROR(IF(A11,0,IF(LEN('Weight Loss Tracker'!$B14)=0,0,'Weight Loss Tracker'!$B14)),\"\")","v":"2017-07-14"},{"$f":"IFERROR(IF(A11,0,IF(LEN('Weight Loss Tracker'!$C14)=0,0,'Weight Loss Tracker'!$C14)),\"\")","v":173.5},null,null,null,null,{"$error":"#N/A"},{"$error":"#N/A"},{"$f":"IFERROR(AVERAGEIFS(Weight[WEIGHT],Weight[DATE],\">=\"&$H11,Weight[DATE],\"<=\"&$I11),NA())","v":{"$error":"#N/A"}},null,null,null,null,null,null,{"$f":"MAX($B:$B)","v":"2017-08-18"}]
[{"$f":"IF((LEN('Weight Loss Tracker'!$C15)=0),TRUE)","v":false},{"$f":"IFERROR(IF(A12,0,IF(LEN('Weight Loss Tracker'!$B15)=0,0,'Weight Loss Tracker'!$B15)),\"\")","v":"2017-07-21"},{"$f":"IFERROR(IF(A12,0,IF(LEN('Weight Loss Tracker'!$C15)=0,0,'Weight Loss Tracker'!$C15)),\"\")","v":173},null,null,null,null,{"$error":"#N/A"},{"$error":"#N/A"},{"$f":"IFERROR(AVERAGEIFS(Weight[WEIGHT],Weight[DATE],\">=\"&$H12,Weight[DATE],\"<=\"&$I12),NA())","v":{"$error":"#N/A"}}]
[{"$f":"IF((LEN('Weight Loss Tracker'!$C16)=0),TRUE)","v":false},{"$f":"IFERROR(IF(A13,0,IF(LEN('Weight Loss Tracker'!$B16)=0,0,'Weight Loss Tracker'!$B16)),\"\")","v":"2017-07-28"},{"$f":"IFERROR(IF(A13,0,IF(LEN('Weight Loss Tracker'!$C16)=0,0,'Weight Loss Tracker'!$C16)),\"\")","v":172},null,null,null,null,{"$error":"#N/A"},{"$error":"#N/A"},{"$f":"IFERROR(AVERAGEIFS(Weight[WEIGHT],Weight[DATE],\">=\"&$H13,Weight[DATE],\"<=\"&$I13),NA())","v":{"$error":"#N/A"}}]
[{"$f":"IF((LEN('Weight Loss Tracker'!$C17)=0),TRUE)","v":false},{"$f":"IFERROR(IF(A14,0,IF(LEN('Weight Loss Tracker'!$B17)=0,0,'Weight Loss Tracker'!$B17)),\"\")","v":"2017-08-04"},{"$f":"IFERROR(IF(A14,0,IF(LEN('Weight Loss Tracker'!$C17)=0,0,'Weight Loss Tracker'!$C17)),\"\")","v":172},null,null,null,null,{"$error":"#N/A"},{"$error":"#N/A"},{"$f":"IFERROR(AVERAGEIFS(Weight[WEIGHT],Weight[DATE],\">=\"&$H14,Weight[DATE],\"<=\"&$I14),NA())","v":{"$error":"#N/A"}}]
[{"$f":"IF((LEN('Weight Loss Tracker'!$C18)=0),TRUE)","v":false},{"$f":"IFERROR(IF(A15,0,IF(LEN('Weight Loss Tracker'!$B18)=0,0,'Weight Loss Tracker'!$B18)),\"\")","v":"2017-08-11"},{"$f":"IFERROR(IF(A15,0,IF(LEN('Weight Loss Tracker'!$C18)=0,0,'Weight Loss Tracker'!$C18)),\"\")","v":173},null,null,null,null,{"$error":"#N/A"},{"$error":"#N/A"},{"$f":"IFERROR(AVERAGEIFS(Weight[WEIGHT],Weight[DATE],\">=\"&$H15,Weight[DATE],\"<=\"&$I15),NA())","v":{"$error":"#N/A"}}]
[{"$f":"IF((LEN('Weight Loss Tracker'!$C19)=0),TRUE)","v":false},{"$f":"IFERROR(IF(A16,0,IF(LEN('Weight Loss Tracker'!$B19)=0,0,'Weight Loss Tracker'!$B19)),\"\")","v":"2017-08-18"},{"$f":"IFERROR(IF(A16,0,IF(LEN('Weight Loss Tracker'!$C19)=0,0,'Weight Loss Tracker'!$C19)),\"\")","v":172},null,null,null,null,{"$error":"#N/A"},{"$error":"#N/A"},{"$f":"IFERROR(AVERAGEIFS(Weight[WEIGHT],Weight[DATE],\">=\"&$H16,Weight[DATE],\"<=\"&$I16),NA())","v":{"$error":"#N/A"}}]
[{"$f":"IF((LEN('Weight Loss Tracker'!$C20)=0),TRUE)","v":true},{"$f":"IFERROR(IF(A17,0,IF(LEN('Weight Loss Tracker'!$B20)=0,0,'Weight Loss Tracker'!$B20)),\"\")","v":"00:00:00"},{"$f":"IFERROR(IF(A17,0,IF(LEN('Weight Loss Tracker'!$C20)=0,0,'Weight Loss Tracker'!$C20)),\"\")","v":0},null,null,null,null,{"$error":"#N/A"},{"$error":"#N/A"},{"$f":"IFERROR(AVERAGEIFS(Weight[WEIGHT],Weight[DATE],\">=\"&$H17,Weight[DATE],\"<=\"&$I17),NA())","v":{"$error":"#N/A"}}]
[{"$f":"IF((LEN('Weight Loss Tracker'!$C21)=0),TRUE)","v":true},{"$f":"IFERROR(IF(A18,0,IF(LEN('Weight Loss Tracker'!$B21)=0,0,'Weight Loss Tracker'!$B21)),\"\")","v":"00:00:00"},{"$f":"IFERROR(IF(A18,0,IF(LEN('Weight Loss Tracker'!$C21)=0,0,'Weight Loss Tracker'!$C21)),\"\")","v":0},null,null,null,null,{"$error":"#N/A"},{"$error":"#N/A"},{"$f":"IFERROR(AVERAGEIFS(Weight[WEIGHT],Weight[DATE],\">=\"&$H18,Weight[DATE],\"<=\"&$I18),NA())","v":{"$error":"#N/A"}}]
[{"$f":"IF((LEN('Weight Loss Tracker'!$C22)=0),TRUE)","v":true},{"$f":"IFERROR(IF(A19,0,IF(LEN('Weight Loss Tracker'!$B22)=0,0,'Weight Loss Tracker'!$B22)),\"\")","v":"00:00:00"},{"$f":"IFERROR(IF(A19,0,IF(LEN('Weight Loss Tracker'!$C22)=0,0,'Weight Loss Tracker'!$C22)),\"\")","v":0},null,null,null,null,{"$error":"#N/A"},{"$error":"#N/A"},{"$f":"IFERROR(AVERAGEIFS(Weight[WEIGHT],Weight[DATE],\">=\"&$H19,Weight[DATE],\"<=\"&$I19),NA())","v":{"$error":"#N/A"}}]
[{"$f":"IF((LEN('Weight Loss Tracker'!$C23)=0),TRUE)","v":true},{"$f":"IFERROR(IF(A20,0,IF(LEN('Weight Loss Tracker'!$B23)=0,0,'Weight Loss Tracker'!$B23)),\"\")","v":"00:00:00"},{"$f":"IFERROR(IF(A20,0,IF(LEN('Weight Loss Tracker'!$C23)=0,0,'Weight Loss Tracker'!$C23)),\"\")","v":0},null,null,null,null,{"$error":"#N/A"},{"$error":"#N/A"},{"$f":"IFERROR(AVERAGEIFS(Weight[WEIGHT],Weight[DATE],\">=\"&$H20,Weight[DATE],\"<=\"&$I20),NA())","v":{"$error":"#N/A"}}]
[{"$f":"IF((LEN('Weight Loss Tracker'!$C24)=0),TRUE)","v":true},{"$f":"IFERROR(IF(A21,0,IF(LEN('Weight Loss Tracker'!$B24)=0,0,'Weight Loss Tracker'!$B24)),\"\")","v":"00:00:00"},{"$f":"IFERROR(IF(A21,0,IF(LEN('Weight Loss Tracker'!$C24)=0,0,'Weight Loss Tracker'!$C24)),\"\")","v":0},null,null,null,null,{"$error":"#N/A"},{"$error":"#N/A"},{"$f":"IFERROR(AVERAGEIFS(Weight[WEIGHT],Weight[DATE],\">=\"&$H21,Weight[DATE],\"<=\"&$I21),NA())","v":{"$error":"#N/A"}}]
[{"$f":"IF((LEN('Weight Loss Tracker'!$C25)=0),TRUE)","v":true},{"$f":"IFERROR(IF(A22,0,IF(LEN('Weight Loss Tracker'!$B25)=0,0,'Weight Loss Tracker'!$B25)),\"\")","v":"00:00:00"},{"$f":"IFERROR(IF(A22,0,IF(LEN('Weight Loss Tracker'!$C25)=0,0,'Weight Loss Tracker'!$C25)),\"\")","v":0},null,null,null,null,{"$error":"#N/A"},{"$error":"#N/A"},{"$f":"IFERROR(AVERAGEIFS(Weight[WEIGHT],Weight[DATE],\">=\"&$H22,Weight[DATE],\"<=\"&$I22),NA())","v":{"$error":"#N/A"}}]
[{"$f":"IF((LEN('Weight Loss Tracker'!$C26)=0),TRUE)","v":true},{"$f":"IFERROR(IF(A23,0,IF(LEN('Weight Loss Tracker'!$B26)=0,0,'Weight Loss Tracker'!$B26)),\"\")","v":"00:00:00"},{"$f":"IFERROR(IF(A23,0,IF(LEN('Weight Loss Tracker'!$C26)=0,0,'Weight Loss Tracker'!$C26)),\"\")","v":0},null,null,null,null,{"$error":"#N/A"},{"$error":"#N/A"},{"$f":"IFERROR(AVERAGEIFS(Weight[WEIGHT],Weight[DATE],\">=\"&$H23,Weight[DATE],\"<=\"&$I23),NA())","v":{"$error":"#N/A"}}]
[{"$f":"IF((LEN('Weight Loss Tracker'!$C27)=0),TRUE)","v":true},{"$f":"IFERROR(IF(A24,0,IF(LEN('Weight Loss Tracker'!$B27)=0,0,'Weight Loss Tracker'!$B27)),\"\")","v":"00:00:00"},{"$f":"IFERROR(IF(A24,0,IF(LEN('Weight Loss Tracker'!$C27)=0,0,'Weight Loss Tracker'!$C27)),\"\")","v":0},null,null,null,null,{"$error":"#N/A"},{"$error":"#N/A"},{"$f":"IFERROR(AVERAGEIFS(Weight[WEIGHT],Weight[DATE],\">=\"&$H24,Weight[DATE],\"<=\"&$I24),NA())","v":{"$error":"#N/A"}}]
[{"$f":"IF((LEN('Weight Loss Tracker'!$C28)=0),TRUE)","v":true},{"$f":"IFERROR(IF(A25,0,IF(LEN('Weight Loss Tracker'!$B28)=0,0,'Weight Loss Tracker'!$B28)),\"\")","v":"00:00:00"},{"$f":"IFERROR(IF(A25,0,IF(LEN('Weight Loss Tracker'!$C28)=0,0,'Weight Loss Tracker'!$C28)),\"\")","v":0},null,null,null,null,{"$error":"#N/A"},{"$error":"#N/A"},{"$f":"IFERROR(AVERAGEIFS(Weight[WEIGHT],Weight[DATE],\">=\"&$H25,Weight[DATE],\"<=\"&$I25),NA())","v":{"$error":"#N/A"}}]
[{"$f":"IF((LEN('Weight Loss Tracker'!$C29)=0),TRUE)","v":true},{"$f":"IFERROR(IF(A26,0,IF(LEN('Weight Loss Tracker'!$B29)=0,0,'Weight Loss Tracker'!$B29)),\"\")","v":"00:00:00"},{"$f":"IFERROR(IF(A26,0,IF(LEN('Weight Loss Tracker'!$C29)=0,0,'Weight Loss Tracker'!$C29)),\"\")","v":0},null,null,null,null,{"$error":"#N/A"},{"$error":"#N/A"},{"$f":"IFERROR(AVERAGEIFS(Weight[WEIGHT],Weight[DATE],\">=\"&$H26,Weight[DATE],\"<=\"&$I26),NA())","v":{"$error":"#N/A"}}]
[{"$f":"IF((LEN('Weight Loss Tracker'!$C30)=0),TRUE)","v":true},{"$f":"IFERROR(IF(A27,0,IF(LEN('Weight Loss Tracker'!$B30)=0,0,'Weight Loss Tracker'!$B30)),\"\")","v":"00:00:00"},{"$f":"IFERROR(IF(A27,0,IF(LEN('Weight Loss Tracker'!$C30)=0,0,'Weight Loss Tracker'!$C30)),\"\")","v":0},null,null,null,null,{"$error":"#N/A"},{"$error":"#N/A"},{"$f":"IFERROR(AVERAGEIFS(Weight[WEIGHT],Weight[DATE],\">=\"&$H27,Weight[DATE],\"<=\"&$I27),NA())","v":{"$error":"#N/A"}}]
[{"$f":"IF((LEN('Weight Loss Tracker'!$C31)=0),TRUE)","v":true},{"$f":"IFERROR(IF(A28,0,IF(LEN('Weight Loss Tracker'!$B31)=0,0,'Weight Loss Tracker'!$B31)),\"\")","v":"00:00:00"},{"$f":"IFERROR(IF(A28,0,IF(LEN('Weight Loss Tracker'!$C31)=0,0,'Weight Loss Tracker'!$C31)),\"\")","v":0},null,null,null,null,{"$error":"#N/A"},{"$error":"#N/A"},{"$f":"IFERROR(AVERAGEIFS(Weight[WEIGHT],Weight[DATE],\">=\"&$H28,Weight[DATE],\"<=\"&$I28),NA())","v":{"$error":"#N/A"}}]
[{"$f":"IF((LEN('Weight Loss Tracker'!$C32)=0),TRUE)","v":true},{"$f":"IFERROR(IF(A29,0,IF(LEN('Weight Loss Tracker'!$B32)=0,0,'Weight Loss Tracker'!$B32)),\"\")","v":"00:00:00"},{"$f":"IFERROR(IF(A29,0,IF(LEN('Weight Loss Tracker'!$C32)=0,0,'Weight Loss Tracker'!$C32)),\"\")","v":0}]
[{"$f":"IF((LEN('Weight Loss Tracker'!$C33)=0),TRUE)","v":true},{"$f":"IFERROR(IF(A30,0,IF(LEN('Weight Loss Tracker'!$B33)=0,0,'Weight Loss Tracker'!$B33)),\"\")","v":"00:00:00"},{"$f":"IFERROR(IF(A30,0,IF(LEN('Weight Loss Tracker'!$C33)=0,0,'Weight Loss Tracker'!$C33)),\"\")","v":0}]
[{"$f":"IF((LEN('Weight Loss Tracker'!$C34)=0),TRUE)","v":true},{"$f":"IFERROR(IF(A31,0,IF(LEN('Weight Loss Tracker'!$B34)=0,0,'Weight Loss Tracker'!$B34)),\"\")","v":"00:00:00"},{"$f":"IFERROR(IF(A31,0,IF(LEN('Weight Loss Tracker'!$C34)=0,0,'Weight Loss Tracker'!$C34)),\"\")","v":0}]
[{"$f":"IF((LEN('Weight Loss Tracker'!$C35)=0),TRUE)","v":true},{"$f":"IFERROR(IF(A32,0,IF(LEN('Weight Loss Tracker'!$B35)=0,0,'Weight Loss Tracker'!$B35)),\"\")","v":"00:00:00"},{"$f":"IFERROR(IF(A32,0,IF(LEN('Weight Loss Tracker'!$C35)=0,0,'Weight Loss Tracker'!$C35)),\"\")","v":0}]
[{"$f":"IF((LEN('Weight Loss Tracker'!$C36)=0),TRUE)","v":true},{"$f":"IFERROR(IF(A33,0,IF(LEN('Weight Loss Tracker'!$B36)=0,0,'Weight Loss Tracker'!$B36)),\"\")","v":"00:00:00"},{"$f":"IFERROR(IF(A33,0,IF(LEN('Weight Loss Tracker'!$C36)=0,0,'Weight Loss Tracker'!$C36)),\"\")","v":0}]
[{"$f":"IF((LEN('Weight Loss Tracker'!$C37)=0),TRUE)","v":true},{"$f":"IFERROR(IF(A34,0,IF(LEN('Weight Loss Tracker'!$B37)=0,0,'Weight Loss Tracker'!$B37)),\"\")","v":"00:00:00"},{"$f":"IFERROR(IF(A34,0,IF(LEN('Weight Loss Tracker'!$C37)=0,0,'Weight Loss Tracker'!$C37)),\"\")","v":0}]
[{"$f":"IF((LEN('Weight Loss Tracker'!$C38)=0),TRUE)","v":true},{"$f":"IFERROR(IF(A35,0,IF(LEN('Weight Loss Tracker'!$B38)=0,0,'Weight Loss Tracker'!$B38)),\"\")","v":"00:00:00"},{"$f":"IFERROR(IF(A35,0,IF(LEN('Weight Loss Tracker'!$C38)=0,0,'Weight Loss Tracker'!$C38)),\"\")","v":0}]
[{"$f":"IF((LEN('Weight Loss Tracker'!$C39)=0),TRUE)","v":true},{"$f":"IFERROR(IF(A36,0,IF(LEN('Weight Loss Tracker'!$B39)=0,0,'Weight Loss Tracker'!$B39)),\"\")","v":"00:00:00"},{"$f":"IFERROR(IF(A36,0,IF(LEN('Weight Loss Tracker'!$C39)=0,0,'Weight Loss Tracker'!$C39)),\"\")","v":0}]
[{"$f":"IF((LEN('Weight Loss Tracker'!$C40)=0),TRUE)","v":true},{"$f":"IFERROR(IF(A37,0,IF(LEN('Weight Loss Tracker'!$B40)=0,0,'Weight Loss Tracker'!$B40)),\"\")","v":"00:00:00"},{"$f":"IFERROR(IF(A37,0,IF(LEN('Weight Loss Tracker'!$C40)=0,0,'Weight Loss Tracker'!$C40)),\"\")","v":0}]
[{"$f":"IF((LEN('Weight Loss Tracker'!$C41)=0),TRUE)","v":true},{"$f":"IFERROR(IF(A38,0,IF(LEN('Weight Loss Tracker'!$B41)=0,0,'Weight Loss Tracker'!$B41)),\"\")","v":"00:00:00"},{"$f":"IFERROR(IF(A38,0,IF(LEN('Weight Loss Tracker'!$C41)=0,0,'Weight Loss Tracker'!$C41)),\"\")","v":0}]
[{"$f":"IF((LEN('Weight Loss Tracker'!$C42)=0),TRUE)","v":true},{"$f":"IFERROR(IF(A39,0,IF(LEN('Weight Loss Tracker'!$B42)=0,0,'Weight Loss Tracker'!$B42)),\"\")","v":"00:00:00"},{"$f":"IFERROR(IF(A39,0,IF(LEN('Weight Loss Tracker'!$C42)=0,0,'Weight Loss Tracker'!$C42)),\"\")","v":0}]
[{"$f":"IF((LEN('Weight Loss Tracker'!$C43)=0),TRUE)","v":true},{"$f":"IFERROR(IF(A40,0,IF(LEN('Weight Loss Tracker'!$B43)=0,0,'Weight Loss Tracker'!$B43)),\"\")","v":"00:00:00"},{"$f":"IFERROR(IF(A40,0,IF(LEN('Weight Loss Tracker'!$C43)=0,0,'Weight Loss Tracker'!$C43)),\"\")","v":0}]
[{"$f":"IF((LEN('Weight Loss Tracker'!$C44)=0),TRUE)","v":true},{"$f":"IFERROR(IF(A41,0,IF(LEN('Weight Loss Tracker'!$B44)=0,0,'Weight Loss Tracker'!$B44)),\"\")","v":"00:00:00"},{"$f":"IFERROR(IF(A41,0,IF(LEN('Weight Loss Tracker'!$C44)=0,0,'Weight Loss Tracker'!$C44)),\"\")","v":0}]
[{"$f":"IF((LEN('Weight Loss Tracker'!$C45)=0),TRUE)","v":true},{"$f":"IFERROR(IF(A42,0,IF(LEN('Weight Loss Tracker'!$B45)=0,0,'Weight Loss Tracker'!$B45)),\"\")","v":"00:00:00"},{"$f":"IFERROR(IF(A42,0,IF(LEN('Weight Loss Tracker'!$C45)=0,0,'Weight Loss Tracker'!$C45)),\"\")","v":0}]
[{"$f":"IF((LEN('Weight Loss Tracker'!$C46)=0),TRUE)","v":true},{"$f":"IFERROR(IF(A43,0,IF(LEN('Weight Loss Tracker'!$B46)=0,0,'Weight Loss Tracker'!$B46)),\"\")","v":"00:00:00"},{"$f":"IFERROR(IF(A43,0,IF(LEN('Weight Loss Tracker'!$C46)=0,0,'Weight Loss Tracker'!$C46)),\"\")","v":0}]
[{"$f":"IF((LEN('Weight Loss Tracker'!$C47)=0),TRUE)","v":true},{"$f":"IFERROR(IF(A44,0,IF(LEN('Weight Loss Tracker'!$B47)=0,0,'Weight Loss Tracker'!$B47)),\"\")","v":"00:00:00"},{"$f":"IFERROR(IF(A44,0,IF(LEN('Weight Loss Tracker'!$C47)=0,0,'Weight Loss Tracker'!$C47)),\"\")","v":0}]
[{"$f":"IF((LEN('Weight Loss Tracker'!$C48)=0),TRUE)","v":true},{"$f":"IFERROR(IF(A45,0,IF(LEN('Weight Loss Tracker'!$B48)=0,0,'Weight Loss Tracker'!$B48)),\"\")","v":"00:00:00"},{"$f":"IFERROR(IF(A45,0,IF(LEN('Weight Loss Tracker'!$C48)=0,0,'Weight Loss Tracker'!$C48)),\"\")","v":0}]
[{"$f":"IF((LEN('Weight Loss Tracker'!$C49)=0),TRUE)","v":true},{"$f":"IFERROR(IF(A46,0,IF(LEN('Weight Loss Tracker'!$B49)=0,0,'Weight Loss Tracker'!$B49)),\"\")","v":"00:00:00"},{"$f":"IFERROR(IF(A46,0,IF(LEN('Weight Loss Tracker'!$C49)=0,0,'Weight Loss Tracker'!$C49)),\"\")","v":0}]
[{"$f":"IF((LEN('Weight Loss Tracker'!$C50)=0),TRUE)","v":true},{"$f":"IFERROR(IF(A47,0,IF(LEN('Weight Loss Tracker'!$B50)=0,0,'Weight Loss Tracker'!$B50)),\"\")","v":"00:00:00"},{"$f":"IFERROR(IF(A47,0,IF(LEN('Weight Loss Tracker'!$C50)=0,0,'Weight Loss Tracker'!$C50)),\"\")","v":0}]
[{"$f":"IF((LEN('Weight Loss Tracker'!$C51)=0),TRUE)","v":true},{"$f":"IFERROR(IF(A48,0,IF(LEN('Weight Loss Tracker'!$B51)=0,0,'Weight Loss Tracker'!$B51)),\"\")","v":"00:00:00"},{"$f":"IFERROR(IF(A48,0,IF(LEN('Weight Loss Tracker'!$C51)=0,0,'Weight Loss Tracker'!$C51)),\"\")","v":0}]
[{"$f":"IF((LEN('Weight Loss Tracker'!$C52)=0),TRUE)","v":true},{"$f":"IFERROR(IF(A49,0,IF(LEN('Weight Loss Tracker'!$B52)=0,0,'Weight Loss Tracker'!$B52)),\"\")","v":"00:00:00"},{"$f":"IFERROR(IF(A49,0,IF(LEN('Weight Loss Tracker'!$C52)=0,0,'Weight Loss Tracker'!$C52)),\"\")","v":0}]
[{"$f":"IF((LEN('Weight Loss Tracker'!$C53)=0),TRUE)","v":true},{"$f":"IFERROR(IF(A50,0,IF(LEN('Weight Loss Tracker'!$B53)=0,0,'Weight Loss Tracker'!$B53)),\"\")","v":"00:00:00"},{"$f":"IFERROR(IF(A50,0,IF(LEN('Weight Loss Tracker'!$C53)=0,0,'Weight Loss Tracker'!$C53)),\"\")","v":0}]
[{"$f":"IF((LEN('Weight Loss Tracker'!$C54)=0),TRUE)","v":true},{"$f":"IFERROR(IF(A51,0,IF(LEN('Weight Loss Tracker'!$B54)=0,0,'Weight Loss Tracker'!$B54)),\"\")","v":"00:00:00"},{"$f":"IFERROR(IF(A51,0,IF(LEN('Weight Loss Tracker'!$C54)=0,0,'Weight Loss Tracker'!$C54)),\"\")","v":0}]
[{"$f":"IF((LEN('Weight Loss Tracker'!$C55)=0),TRUE)","v":true},{"$f":"IFERROR(IF(A52,0,IF(LEN('Weight Loss Tracker'!$B55)=0,0,'Weight Loss Tracker'!$B55)),\"\")","v":"00:00:00"},{"$f":"IFERROR(IF(A52,0,IF(LEN('Weight Loss Tracker'!$C55)=0,0,'Weight Loss Tracker'!$C55)),\"\")","v":0}]
[{"$f":"IF((LEN('Weight Loss Tracker'!$C56)=0),TRUE)","v":true},{"$f":"IFERROR(IF(A53,0,IF(LEN('Weight Loss Tracker'!$B56)=0,0,'Weight Loss Tracker'!$B56)),\"\")","v":"00:00:00"},{"$f":"IFERROR(IF(A53,0,IF(LEN('Weight Loss Tracker'!$C56)=0,0,'Weight Loss Tracker'!$C56)),\"\")","v":0}]
[{"$f":"IF((LEN('Weight Loss Tracker'!$C57)=0),TRUE)","v":true},{"$f":"IFERROR(IF(A54,0,IF(LEN('Weight Loss Tracker'!$B57)=0,0,'Weight Loss Tracker'!$B57)),\"\")","v":"00:00:00"},{"$f":"IFERROR(IF(A54,0,IF(LEN('Weight Loss Tracker'!$C57)=0,0,'Weight Loss Tracker'!$C57)),\"\")","v":0}]
[{"$f":"IF((LEN('Weight Loss Tracker'!$C58)=0),TRUE)","v":true},{"$f":"IFERROR(IF(A55,0,IF(LEN('Weight Loss Tracker'!$B58)=0,0,'Weight Loss Tracker'!$B58)),\"\")","v":"00:00:00"},{"$f":"IFERROR(IF(A55,0,IF(LEN('Weight Loss Tracker'!$C58)=0,0,'Weight Loss Tracker'!$C58)),\"\")","v":0}]
[{"$f":"IF((LEN('Weight Loss Tracker'!$C59)=0),TRUE)","v":true},{"$f":"IFERROR(IF(A56,0,IF(LEN('Weight Loss Tracker'!$B59)=0,0,'Weight Loss Tracker'!$B59)),\"\")","v":"00:00:00"},{"$f":"IFERROR(IF(A56,0,IF(LEN('Weight Loss Tracker'!$C59)=0,0,'Weight Loss Tracker'!$C59)),\"\")","v":0}]
[{"$f":"IF((LEN('Weight Loss Tracker'!$C60)=0),TRUE)","v":true},{"$f":"IFERROR(IF(A57,0,IF(LEN('Weight Loss Tracker'!$B60)=0,0,'Weight Loss Tracker'!$B60)),\"\")","v":"00:00:00"},{"$f":"IFERROR(IF(A57,0,IF(LEN('Weight Loss Tracker'!$C60)=0,0,'Weight Loss Tracker'!$C60)),\"\")","v":0}]
[{"$f":"IF((LEN('Weight Loss Tracker'!$C61)=0),TRUE)","v":true},{"$f":"IFERROR(IF(A58,0,IF(LEN('Weight Loss Tracker'!$B61)=0,0,'Weight Loss Tracker'!$B61)),\"\")","v":"00:00:00"},{"$f":"IFERROR(IF(A58,0,IF(LEN('Weight Loss Tracker'!$C61)=0,0,'Weight Loss Tracker'!$C61)),\"\")","v":0}]
[{"$f":"IF((LEN('Weight Loss Tracker'!$C62)=0),TRUE)","v":true},{"$f":"IFERROR(IF(A59,0,IF(LEN('Weight Loss Tracker'!$B62)=0,0,'Weight Loss Tracker'!$B62)),\"\")","v":"00:00:00"},{"$f":"IFERROR(IF(A59,0,IF(LEN('Weight Loss Tracker'!$C62)=0,0,'Weight Loss Tracker'!$C62)),\"\")","v":0}]
[{"$f":"IF((LEN('Weight Loss Tracker'!$C63)=0),TRUE)","v":true},{"$f":"IFERROR(IF(A60,0,IF(LEN('Weight Loss Tracker'!$B63)=0,0,'Weight Loss Tracker'!$B63)),\"\")","v":"00:00:00"},{"$f":"IFERROR(IF(A60,0,IF(LEN('Weight Loss Tracker'!$C63)=0,0,'Weight Loss Tracker'!$C63)),\"\")","v":0}]
[{"$f":"IF((LEN('Weight Loss Tracker'!$C64)=0),TRUE)","v":true},{"$f":"IFERROR(IF(A61,0,IF(LEN('Weight Loss Tracker'!$B64)=0,0,'Weight Loss Tracker'!$B64)),\"\")","v":"00:00:00"},{"$f":"IFERROR(IF(A61,0,IF(LEN('Weight Loss Tracker'!$C64)=0,0,'Weight Loss Tracker'!$C64)),\"\")","v":0}]
[{"$f":"IF((LEN('Weight Loss Tracker'!$C65)=0),TRUE)","v":true},{"$f":"IFERROR(IF(A62,0,IF(LEN('Weight Loss Tracker'!$B65)=0,0,'Weight Loss Tracker'!$B65)),\"\")","v":"00:00:00"},{"$f":"IFERROR(IF(A62,0,IF(LEN('Weight Loss Tracker'!$C65)=0,0,'Weight Loss Tracker'!$C65)),\"\")","v":0}]
[{"$f":"IF((LEN('Weight Loss Tracker'!$C66)=0),TRUE)","v":true},{"$f":"IFERROR(IF(A63,0,IF(LEN('Weight Loss Tracker'!$B66)=0,0,'Weight Loss Tracker'!$B66)),\"\")","v":"00:00:00"},{"$f":"IFERROR(IF(A63,0,IF(LEN('Weight Loss Tracker'!$C66)=0,0,'Weight Loss Tracker'!$C66)),\"\")","v":0}]
[{"$f":"IF((LEN('Weight Loss Tracker'!$C67)=0),TRUE)","v":true},{"$f":"IFERROR(IF(A64,0,IF(LEN('Weight Loss Tracker'!$B67)=0,0,'Weight Loss Tracker'!$B67)),\"\")","v":"00:00:00"},{"$f":"IFERROR(IF(A64,0,IF(LEN('Weight Loss Tracker'!$C67)=0,0,'Weight Loss Tracker'!$C67)),\"\")","v":0}]
[{"$f":"IF((LEN('Weight Loss Tracker'!$C68)=0),TRUE)","v":true},{"$f":"IFERROR(IF(A65,0,IF(LEN('Weight Loss Tracker'!$B68)=0,0,'Weight Loss Tracker'!$B68)),\"\")","v":"00:00:00"},{"$f":"IFERROR(IF(A65,0,IF(LEN('Weight Loss Tracker'!$C68)=0,0,'Weight Loss Tracker'!$C68)),\"\")","v":0}]
[{"$f":"IF((LEN('Weight Loss Tracker'!$C69)=0),TRUE)","v":true},{"$f":"IFERROR(IF(A66,0,IF(LEN('Weight Loss Tracker'!$B69)=0,0,'Weight Loss Tracker'!$B69)),\"\")","v":"00:00:00"},{"$f":"IFERROR(IF(A66,0,IF(LEN('Weight Loss Tracker'!$C69)=0,0,'Weight Loss Tracker'!$C69)),\"\")","v":0}]
[{"$f":"IF((LEN('Weight Loss Tracker'!$C70)=0),TRUE)","v":true},{"$f":"IFERROR(IF(A67,0,IF(LEN('Weight Loss Tracker'!$B70)=0,0,'Weight Loss Tracker'!$B70)),\"\")","v":"00:00:00"},{"$f":"IFERROR(IF(A67,0,IF(LEN('Weight Loss Tracker'!$C70)=0,0,'Weight Loss Tracker'!$C70)),\"\")","v":0}]
[{"$f":"IF((LEN('Weight Loss Tracker'!$C71)=0),TRUE)","v":true},{"$f":"IFERROR(IF(A68,0,IF(LEN('Weight Loss Tracker'!$B71)=0,0,'Weight Loss Tracker'!$B71)),\"\")","v":"00:00:00"},{"$f":"IFERROR(IF(A68,0,IF(LEN('Weight Loss Tracker'!$C71)=0,0,'Weight Loss Tracker'!$C71)),\"\")","v":0}]
[{"$f":"IF((LEN('Weight Loss Tracker'!$C72)=0),TRUE)","v":true},{"$f":"IFERROR(IF(A69,0,IF(LEN('Weight Loss Tracker'!$B72)=0,0,'Weight Loss Tracker'!$B72)),\"\")","v":"00:00:00"},{"$f":"IFERROR(IF(A69,0,IF(LEN('Weight Loss Tracker'!$C72)=0,0,'Weight Loss Tracker'!$C72)),\"\")","v":0}]
[{"$f":"IF((LEN('Weight Loss Tracker'!$C73)=0),TRUE)","v":true},{"$f":"IFERROR(IF(A70,0,IF(LEN('Weight Loss Tracker'!$B73)=0,0,'Weight Loss Tracker'!$B73)),\"\")","v":"00:00:00"},{"$f":"IFERROR(IF(A70,0,IF(LEN('Weight Loss Tracker'!$C73)=0,0,'Weight Loss Tracker'!$C73)),\"\")","v":0}]
[{"$f":"IF((LEN('Weight Loss Tracker'!$C74)=0),TRUE)","v":true},{"$f":"IFERROR(IF(A71,0,IF(LEN('Weight Loss Tracker'!$B74)=0,0,'Weight Loss Tracker'!$B74)),\"\")","v":"00:00:00"},{"$f":"IFERROR(IF(A71,0,IF(LEN('Weight Loss Tracker'!$C74)=0,0,'Weight Loss Tracker'!$C74)),\"\")","v":0}]
[{"$f":"IF((LEN('Weight Loss Tracker'!$C75)=0),TRUE)","v":true},{"$f":"IFERROR(IF(A72,0,IF(LEN('Weight Loss Tracker'!$B75)=0,0,'Weight Loss Tracker'!$B75)),\"\")","v":"00:00:00"},{"$f":"IFERROR(IF(A72,0,IF(LEN('Weight Loss Tracker'!$C75)=0,0,'Weight Loss Tracker'!$C75)),\"\")","v":0}]
[{"$f":"IF((LEN('Weight Loss Tracker'!$C76)=0),TRUE)","v":true},{"$f":"IFERROR(IF(A73,0,IF(LEN('Weight Loss Tracker'!$B76)=0,0,'Weight Loss Tracker'!$B76)),\"\")","v":"00:00:00"},{"$f":"IFERROR(IF(A73,0,IF(LEN('Weight Loss Tracker'!$C76)=0,0,'Weight Loss Tracker'!$C76)),\"\")","v":0}]
[{"$f":"IF((LEN('Weight Loss Tracker'!$C77)=0),TRUE)","v":true},{"$f":"IFERROR(IF(A74,0,IF(LEN('Weight Loss Tracker'!$B77)=0,0,'Weight Loss Tracker'!$B77)),\"\")","v":"00:00:00"},{"$f":"IFERROR(IF(A74,0,IF(LEN('Weight Loss Tracker'!$C77)=0,0,'Weight Loss Tracker'!$C77)),\"\")","v":0}]
[{"$f":"IF((LEN('Weight Loss Tracker'!$C78)=0),TRUE)","v":true},{"$f":"IFERROR(IF(A75,0,IF(LEN('Weight Loss Tracker'!$B78)=0,0,'Weight Loss Tracker'!$B78)),\"\")","v":"00:00:00"},{"$f":"IFERROR(IF(A75,0,IF(LEN('Weight Loss Tracker'!$C78)=0,0,'Weight Loss Tracker'!$C78)),\"\")","v":0}]
[{"$f":"IF((LEN('Weight Loss Tracker'!$C79)=0),TRUE)","v":true},{"$f":"IFERROR(IF(A76,0,IF(LEN('Weight Loss Tracker'!$B79)=0,0,'Weight Loss Tracker'!$B79)),\"\")","v":"00:00:00"},{"$f":"IFERROR(IF(A76,0,IF(LEN('Weight Loss Tracker'!$C79)=0,0,'Weight Loss Tracker'!$C79)),\"\")","v":0}]
[{"$f":"IF((LEN('Weight Loss Tracker'!$C80)=0),TRUE)","v":true},{"$f":"IFERROR(IF(A77,0,IF(LEN('Weight Loss Tracker'!$B80)=0,0,'Weight Loss Tracker'!$B80)),\"\")","v":"00:00:00"},{"$f":"IFERROR(IF(A77,0,IF(LEN('Weight Loss Tracker'!$C80)=0,0,'Weight Loss Tracker'!$C80)),\"\")","v":0}]
[{"$f":"IF((LEN('Weight Loss Tracker'!$C81)=0),TRUE)","v":true},{"$f":"IFERROR(IF(A78,0,IF(LEN('Weight Loss Tracker'!$B81)=0,0,'Weight Loss Tracker'!$B81)),\"\")","v":"00:00:00"},{"$f":"IFERROR(IF(A78,0,IF(LEN('Weight Loss Tracker'!$C81)=0,0,'Weight Loss Tracker'!$C81)),\"\")","v":0}]
[{"$f":"IF((LEN('Weight Loss Tracker'!$C82)=0),TRUE)","v":true},{"$f":"IFERROR(IF(A79,0,IF(LEN('Weight Loss Tracker'!$B82)=0,0,'Weight Loss Tracker'!$B82)),\"\")","v":"00:00:00"},{"$f":"IFERROR(IF(A79,0,IF(LEN('Weight Loss Tracker'!$C82)=0,0,'Weight Loss Tracker'!$C82)),\"\")","v":0}]
[{"$f":"IF((LEN('Weight Loss Tracker'!$C83)=0),TRUE)","v":true},{"$f":"IFERROR(IF(A80,0,IF(LEN('Weight Loss Tracker'!$B83)=0,0,'Weight Loss Tracker'!$B83)),\"\")","v":"00:00:00"},{"$f":"IFERROR(IF(A80,0,IF(LEN('Weight Loss Tracker'!$C83)=0,0,'Weight Loss Tracker'!$C83)),\"\")","v":0}]
[{"$f":"IF((LEN('Weight Loss Tracker'!$C84)=0),TRUE)","v":true},{"$f":"IFERROR(IF(A81,0,IF(LEN('Weight Loss Tracker'!$B84)=0,0,'Weight Loss Tracker'!$B84)),\"\")","v":"00:00:00"},{"$f":"IFERROR(IF(A81,0,IF(LEN('Weight Loss Tracker'!$C84)=0,0,'Weight Loss Tracker'!$C84)),\"\")","v":0}]
[{"$f":"IF((LEN('Weight Loss Tracker'!$C85)=0),TRUE)","v":true},{"$f":"IFERROR(IF(A82,0,IF(LEN('Weight Loss Tracker'!$B85)=0,0,'Weight Loss Tracker'!$B85)),\"\")","v":"00:00:00"},{"$f":"IFERROR(IF(A82,0,IF(LEN('Weight Loss Tracker'!$C85)=0,0,'Weight Loss Tracker'!$C85)),\"\")","v":0}]
[{"$f":"IF((LEN('Weight Loss Tracker'!$C86)=0),TRUE)","v":true},{"$f":"IFERROR(IF(A83,0,IF(LEN('Weight Loss Tracker'!$B86)=0,0,'Weight Loss Tracker'!$B86)),\"\")","v":"00:00:00"},{"$f":"IFERROR(IF(A83,0,IF(LEN('Weight Loss Tracker'!$C86)=0,0,'Weight Loss Tracker'!$C86)),\"\")","v":0}]
[{"$f":"IF((LEN('Weight Loss Tracker'!$C87)=0),TRUE)","v":true},{"$f":"IFERROR(IF(A84,0,IF(LEN('Weight Loss Tracker'!$B87)=0,0,'Weight Loss Tracker'!$B87)),\"\")","v":"00:00:00"},{"$f":"IFERROR(IF(A84,0,IF(LEN('Weight Loss Tracker'!$C87)=0,0,'Weight Loss Tracker'!$C87)),\"\")","v":0}]
[{"$f":"IF((LEN('Weight Loss Tracker'!$C88)=0),TRUE)","v":true},{"$f":"IFERROR(IF(A85,0,IF(LEN('Weight Loss Tracker'!$B88)=0,0,'Weight Loss Tracker'!$B88)),\"\")","v":"00:00:00"},{"$f":"IFERROR(IF(A85,0,IF(LEN('Weight Loss Tracker'!$C88)=0,0,'Weight Loss Tracker'!$C88)),\"\")","v":0}]
[{"$f":"IF((LEN('Weight Loss Tracker'!$C89)=0),TRUE)","v":true},{"$f":"IFERROR(IF(A86,0,IF(LEN('Weight Loss Tracker'!$B89)=0,0,'Weight Loss Tracker'!$B89)),\"\")","v":"00:00:00"},{"$f":"IFERROR(IF(A86,0,IF(LEN('Weight Loss Tracker'!$C89)=0,0,'Weight Loss Tracker'!$C89)),\"\")","v":0}]
[{"$f":"IF((LEN('Weight Loss Tracker'!$C90)=0),TRUE)","v":true},{"$f":"IFERROR(IF(A87,0,IF(LEN('Weight Loss Tracker'!$B90)=0,0,'Weight Loss Tracker'!$B90)),\"\")","v":"00:00:00"},{"$f":"IFERROR(IF(A87,0,IF(LEN('Weight Loss Tracker'!$C90)=0,0,'Weight Loss Tracker'!$C90)),\"\")","v":0}]
[{"$f":"IF((LEN('Weight Loss Tracker'!$C91)=0),TRUE)","v":true},{"$f":"IFERROR(IF(A88,0,IF(LEN('Weight Loss Tracker'!$B91)=0,0,'Weight Loss Tracker'!$B91)),\"\")","v":"00:00:00"},{"$f":"IFERROR(IF(A88,0,IF(LEN('Weight Loss Tracker'!$C91)=0,0,'Weight Loss Tracker'!$C91)),\"\")","v":0}]
[{"$f":"IF((LEN('Weight Loss Tracker'!$C92)=0),TRUE)","v":true},{"$f":"IFERROR(IF(A89,0,IF(LEN('Weight Loss Tracker'!$B92)=0,0,'Weight Loss Tracker'!$B92)),\"\")","v":"00:00:00"},{"$f":"IFERROR(IF(A89,0,IF(LEN('Weight Loss Tracker'!$C92)=0,0,'Weight Loss Tracker'!$C92)),\"\")","v":0}]
[{"$f":"IF((LEN('Weight Loss Tracker'!$C93)=0),TRUE)","v":true},{"$f":"IFERROR(IF(A90,0,IF(LEN('Weight Loss Tracker'!$B93)=0,0,'Weight Loss Tracker'!$B93)),\"\")","v":"00:00:00"},{"$f":"IFERROR(IF(A90,0,IF(LEN('Weight Loss Tracker'!$C93)=0,0,'Weight Loss Tracker'!$C93)),\"\")","v":0}]
[{"$f":"IF((LEN('Weight Loss Tracker'!$C94)=0),TRUE)","v":true},{"$f":"IFERROR(IF(A91,0,IF(LEN('Weight Loss Tracker'!$B94)=0,0,'Weight Loss Tracker'!$B94)),\"\")","v":"00:00:00"},{"$f":"IFERROR(IF(A91,0,IF(LEN('Weight Loss Tracker'!$C94)=0,0,'Weight Loss Tracker'!$C94)),\"\")","v":0}]
[{"$f":"IF((LEN('Weight Loss Tracker'!$C95)=0),TRUE)","v":true},{"$f":"IFERROR(IF(A92,0,IF(LEN('Weight Loss Tracker'!$B95)=0,0,'Weight Loss Tracker'!$B95)),\"\")","v":"00:00:00"},{"$f":"IFERROR(IF(A92,0,IF(LEN('Weight Loss Tracker'!$C95)=0,0,'Weight Loss Tracker'!$C95)),\"\")","v":0}]
[{"$f":"IF((LEN('Weight Loss Tracker'!$C96)=0),TRUE)","v":true},{"$f":"IFERROR(IF(A93,0,IF(LEN('Weight Loss Tracker'!$B96)=0,0,'Weight Loss Tracker'!$B96)),\"\")","v":"00:00:00"},{"$f":"IFERROR(IF(A93,0,IF(LEN('Weight Loss Tracker'!$C96)=0,0,'Weight Loss Tracker'!$C96)),\"\")","v":0}]
[{"$f":"IF((LEN('Weight Loss Tracker'!$C97)=0),TRUE)","v":true},{"$f":"IFERROR(IF(A94,0,IF(LEN('Weight Loss Tracker'!$B97)=0,0,'Weight Loss Tracker'!$B97)),\"\")","v":"00:00:00"},{"$f":"IFERROR(IF(A94,0,IF(LEN('Weight Loss Tracker'!$C97)=0,0,'Weight Loss Tracker'!$C97)),\"\")","v":0}]
[{"$f":"IF((LEN('Weight Loss Tracker'!$C98)=0),TRUE)","v":true},{"$f":"IFERROR(IF(A95,0,IF(LEN('Weight Loss Tracker'!$B98)=0,0,'Weight Loss Tracker'!$B98)),\"\")","v":"00:00:00"},{"$f":"IFERROR(IF(A95,0,IF(LEN('Weight Loss Tracker'!$C98)=0,0,'Weight Loss Tracker'!$C98)),\"\")","v":0}]
[{"$f":"IF((LEN('Weight Loss Tracker'!$C99)=0),TRUE)","v":true},{"$f":"IFERROR(IF(A96,0,IF(LEN('Weight Loss Tracker'!$B99)=0,0,'Weight Loss Tracker'!$B99)),\"\")","v":"00:00:00"},{"$f":"IFERROR(IF(A96,0,IF(LEN('Weight Loss Tracker'!$C99)=0,0,'Weight Loss Tracker'!$C99)),\"\")","v":0}]
[{"$f":"IF((LEN('Weight Loss Tracker'!$C100)=0),TRUE)","v":true},{"$f":"IFERROR(IF(A97,0,IF(LEN('Weight Loss Tracker'!$B100)=0,0,'Weight Loss Tracker'!$B100)),\"\")","v":"00:00:00"},{"$f":"IFERROR(IF(A97,0,IF(LEN('Weight Loss Tracker'!$C100)=0,0,'Weight Loss Tracker'!$C100)),\"\")","v":0}]
[{"$f":"IF((LEN('Weight Loss Tracker'!$C101)=0),TRUE)","v":true},{"$f":"IFERROR(IF(A98,0,IF(LEN('Weight Loss Tracker'!$B101)=0,0,'Weight Loss Tracker'!$B101)),\"\")","v":"00:00:00"},{"$f":"IFERROR(IF(A98,0,IF(LEN('Weight Loss Tracker'!$C101)=0,0,'Weight Loss Tracker'!$C101)),\"\")","v":0}]
[{"$f":"IF((LEN('Weight Loss Tracker'!$C102)=0),TRUE)","v":true},{"$f":"IFERROR(IF(A99,0,IF(LEN('Weight Loss Tracker'!$B102)=0,0,'Weight Loss Tracker'!$B102)),\"\")","v":"00:00:00"},{"$f":"IFERROR(IF(A99,0,IF(LEN('Weight Loss Tracker'!$C102)=0,0,'Weight Loss Tracker'!$C102)),\"\")","v":0}]
[{"$f":"IF((LEN('Weight Loss Tracker'!$C103)=0),TRUE)","v":true},{"$f":"IFERROR(IF(A100,0,IF(LEN('Weight Loss Tracker'!$B103)=0,0,'Weight Loss Tracker'!$B103)),\"\")","v":"00:00:00"},{"$f":"IFERROR(IF(A100,0,IF(LEN('Weight Loss Tracker'!$C103)=0,0,'Weight Loss Tracker'!$C103)),\"\")","v":0}]
[{"$f":"IF((LEN('Weight Loss Tracker'!$C104)=0),TRUE)","v":true},{"$f":"IFERROR(IF(A101,0,IF(LEN('Weight Loss Tracker'!$B104)=0,0,'Weight Loss Tracker'!$B104)),\"\")","v":"00:00:00"},{"$f":"IFERROR(IF(A101,0,IF(LEN('Weight Loss Tracker'!$C104)=0,0,'Weight Loss Tracker'!$C104)),\"\")","v":0}]
[{"$f":"IF((LEN('Weight Loss Tracker'!$C105)=0),TRUE)","v":true},{"$f":"IFERROR(IF(A102,0,IF(LEN('Weight Loss Tracker'!$B105)=0,0,'Weight Loss Tracker'!$B105)),\"\")","v":"00:00:00"},{"$f":"IFERROR(IF(A102,0,IF(LEN('Weight Loss Tracker'!$C105)=0,0,'Weight Loss Tracker'!$C105)),\"\")","v":0}]
[{"$f":"IF((LEN('Weight Loss Tracker'!$C106)=0),TRUE)","v":true},{"$f":"IFERROR(IF(A103,0,IF(LEN('Weight Loss Tracker'!$B106)=0,0,'Weight Loss Tracker'!$B106)),\"\")","v":"00:00:00"},{"$f":"IFERROR(IF(A103,0,IF(LEN('Weight Loss Tracker'!$C106)=0,0,'Weight Loss Tracker'!$C106)),\"\")","v":0}]
[{"$f":"IF((LEN('Weight Loss Tracker'!$C107)=0),TRUE)","v":true},{"$f":"IFERROR(IF(A104,0,IF(LEN('Weight Loss Tracker'!$B107)=0,0,'Weight Loss Tracker'!$B107)),\"\")","v":"00:00:00"},{"$f":"IFERROR(IF(A104,0,IF(LEN('Weight Loss Tracker'!$C107)=0,0,'Weight Loss Tracker'!$C107)),\"\")","v":0}]
[{"$f":"IF((LEN('Weight Loss Tracker'!$C108)=0),TRUE)","v":true},{"$f":"IFERROR(IF(A105,0,IF(LEN('Weight Loss Tracker'!$B108)=0,0,'Weight Loss Tracker'!$B108)),\"\")","v":"00:00:00"},{"$f":"IFERROR(IF(A105,0,IF(LEN('Weight Loss Tracker'!$C108)=0,0,'Weight Loss Tracker'!$C108)),\"\")","v":0}]
[{"$f":"IF((LEN('Weight Loss Tracker'!$C109)=0),TRUE)","v":true},{"$f":"IFERROR(IF(A106,0,IF(LEN('Weight Loss Tracker'!$B109)=0,0,'Weight Loss Tracker'!$B109)),\"\")","v":"00:00:00"},{"$f":"IFERROR(IF(A106,0,IF(LEN('Weight Loss Tracker'!$C109)=0,0,'Weight Loss Tracker'!$C109)),\"\")","v":0}]
[{"$f":"IF((LEN('Weight Loss Tracker'!$C110)=0),TRUE)","v":true},{"$f":"IFERROR(IF(A107,0,IF(LEN('Weight Loss Tracker'!$B110)=0,0,'Weight Loss Tracker'!$B110)),\"\")","v":"00:00:00"},{"$f":"IFERROR(IF(A107,0,IF(LEN('Weight Loss Tracker'!$C110)=0,0,'Weight Loss Tracker'!$C110)),\"\")","v":0}]